[Event "DEN-chT XtraCon 2018-19"]
[Site "Denmark"]
[Date "2019.03.16"]
[Round "8"]
[White "Nordenbaek, Jan"]
[Black "Grubert, Christian"]
[Result "1-0"]
[ECO "B27"]
[WhiteElo "2188"]
[BlackElo "2161"]
[Annotator "NA"]
[PlyCount "91"]
[EventDate "2018.10.27"]
[EventType "team-tourn"]
[EventCountry "DEN"]
[SourceTitle "playchess.com"]
[Source "ChessBase"]
[SourceQuality "1"]
[TimeControl "40/5400+30:1800+30"]

1. e4 {[%emt 0:00:00]} c5 {[%emt 0:00:00]} 2. Nf3 {[%emt 0:00:00]} g6 {[%emt 0:00:00]} 3. c3 {[%emt 0:00:24]} Bg7 {[%emt 0:00:05]} 4. d4 {[%emt 0:00:05]} cxd4 {[%emt 0:00:09]} 5. cxd4 {[%emt 0:00:06]} d5 {[%emt 0:00:19]} 6. e5 {[%emt 0:00:05]} Nc6 {[%emt 0:01:30]} 7. h3 {[%emt 0:05:13]} Nh6 {[%emt 0:03:59]} 8. Nc3 {[%emt 0:04:18]} O-O {[%emt 0:00:25]} 9. Bb5 {[%emt 0:06:13]} f6 {[%emt 0:04:25]} 10. O-O {[%emt 0:04:50]} Nf7 {[%emt 0:03:22] B22: Sicilian: 2 c3} 11. exf6 {[%emt 0:07:09]} Bxf6 {[%emt 0:00:30]} 12. Re1 {[%emt 0:05:40]} e6 {[%emt 0:02:10]} (12... Qd6 13. Be3 a6 14. Bf1 b5 15. Qd2 e6 16. g3 Qd8 17. Rac1 Bd7 18. b3 {1-0 (49) Wang,H (2730)-Nava,R (2392) Makati 2018}) 13. b3 $146 {[%emt 0:06:36]} ({Predecessor:} 13. Bxc6 bxc6 14. Bf4 Nd6 15. Bxd6 Qxd6 16. Rc1 Rb8 17. Na4 Rb4 18. a3 {1-0 (39) Cappon,J (2219)-Bianchi,G (2113) Cappelle-la-Grande 2017}) 13... Qa5 {[%emt 0:08:17]} 14. Bb2 {[%emt 0:11:39]} Nd6 {[%emt 0:02:54]} 15. Bxc6 {[%emt 0:02:24]} bxc6 {[%emt 0:00:03]} 16. Rc1 {[%emt 0:02:32]} Bd7 {[%emt 0:12:24]} 17. Qd2 {[%emt 0:05:26]} Qd8 {[%emt 0:11:12]} 18. Ba3 {[%emt 0:04:48]} Be7 {[%emt 0:03:09]} 19. Qd3 {[%emt 0:03:11]} Nf5 {[%emt 0:04:13]} 20. Bxe7 {[%emt 0:00:40]} Qxe7 {[%emt 0:00:08]} 21. Na4 {[%emt 0:00:20]} Qf6 {[%emt 0:03:35]} 22. Nc5 {[%emt 0:03:58]} Bc8 {[%emt 0:00:42]} 23. Rc2 {[%emt 0:02:56]} Rf7 {[%emt 0:05:19]} 24. Ne5 {[%emt 0:02:07]} Rc7 {[%emt 0:00:11]} 25. Rce2 {[%emt 0:02:56]} Rb8 $18 {[%emt 0:01:54]} 26. a3 {[%emt 0:06:44]} Rb6 {[%emt 0:01:00]} 27. b4 {[%emt 0:01:03]} Re7 {[%emt 0:03:11]} 28. Ng4 {[%emt 0:01:20]} Qg7 {[%emt 0:10:05]} 29. Nxe6 {[%emt 0:02:55]} Bxe6 {[%emt 0:06:11]} 30. Rxe6 {[%emt 0:00:08]} Rxe6 {[%emt 0:00:49]} 31. Rxe6 {[%emt 0:00:06]} Qxd4 {[%emt 0:01:22]} 32. Nh6+ {[%emt 0:03:13]} Kf8 {[%emt 0:00:07]} 33. Qf3 {[%emt 0:00:42]} Rb7 {[%emt 0:05:38]} 34. Nxf5 {[%emt 0:01:31]} gxf5 {[%emt 0:00:25]} 35. Rxc6 {[%emt 0:00:44]} Rf7 {[%emt 0:01:30]} 36. Rc8+ {[%emt 0:01:58]} Kg7 {[%emt 0:01:59]} 37. Qg3+ {[%emt 0:00:46]} Kh6 {[%emt 0:00:54]} 38. Rc6+ {[%emt 0:00:46]} Rf6 {[%emt 0:00:21]} 39. Qe3+ {[%emt 0:01:10]} Qxe3 {[%emt 0:00:11]} 40. Rxf6+ {[%emt 0:00:04]} Kg7 {[%emt 0:00:40]} 41. Rf7+ {[%emt 0:32:53]} Kxf7 {[%emt 0:31:05]} 42. fxe3 {[%emt 0:00:04]} Ke6 {[%emt 0:03:50]} 43. Kf2 {[%emt 0:00:00]} Ke5 {[%emt 0:00:00]} 44. Ke2 {[%emt 0:00:00]} Ke4 {[%emt 0:00:00]} 45. a4 {[%emt 0:00:00]} d4 {[%emt 0:00:00]} 46. b5 {[%emt 0:00:00]} 1-0

[Event "DEN-chT XtraCon 2018-19"]
[Site "Denmark"]
[Date "2019.03.16"]
[Round "8"]
[White "Andersen, Ib Hother"]
[Black "Hoffmann, Tobias"]
[Result "1/2-1/2"]
[ECO "A04"]
[WhiteElo "2155"]
[BlackElo "2056"]
[Annotator "ChessBase"]
[PlyCount "149"]
[EventDate "2018.10.27"]
[EventType "team-tourn"]
[EventCountry "DEN"]
[SourceTitle "playchess.com"]
[Source "ChessBase"]
[SourceQuality "1"]
[TimeControl "40/5400+30:1800+30"]

1. Nf3 {[%emt 0:00:01]} Nc6 {[%emt 0:00:00]} 2. d4 {[%emt 0:00:24]} d5 {[%emt 0:00:05]} 3. Bf4 {[%emt 0:02:39]} Bg4 {[%emt 0:01:20]} 4. Nbd2 {[%emt 0:01:19]} e6 {[%emt 0:01:22]} 5. h3 {[%emt 0:00:44]} Bh5 {[%emt 0:00:45]} 6. c3 {[%emt 0:09:18]} Bd6 {[%emt 0:03:04]} 7. Bxd6 {[%emt 0:03:58]} Qxd6 {[%emt 0:00:26]} 8. e3 {[%emt 0:01:24]} f6 {[%emt 0:02:59]} 9. Be2 {[%emt 0:02:09]} Nge7 {[%emt 0:01:00]} 10. Qa4 {[%emt 0:02:36]} O-O {[%emt 0:02:11]} 11. O-O {[%emt 0:05:07]} a6 {[%emt 0:04:42]} 12. Rfe1 {[%emt 0:00:15]} b5 {[%emt 0:03:34]} 13. Qc2 {[%emt 0:01:09]} Na5 {[%emt 0:04:39]} 14. e4 {[%emt 0:18:45]} Qd8 {[%emt 0:29:19]} 15. Bd3 {[%emt 0:00:23]} h6 {[%emt 0:03:39]} 16. a4 {[%emt 0:09:13]} Qd7 {[%emt 0:04:04]} 17. axb5 {[%emt 0:17:27]} axb5 {[%emt 0:00:07]} 18. exd5 {[%emt 0:00:14]} Nxd5 {[%emt 0:00:54]} 19. Nh4 {[%emt 0:01:49]} Bf7 {[%emt 0:01:18]} 20. Bh7+ {[%emt 0:01:11]} Kh8 {[%emt 0:00:10]} 21. Ng6+ {[%emt 0:01:19]} Bxg6 {[%emt 0:00:16]} 22. Bxg6 {[%emt 0:00:04]} f5 {[%emt 0:01:32]} 23. Bh5 {[%emt 0:02:21]} Nc6 {[%emt 0:12:42]} 24. Rxa8 {[%emt 0:01:24]} Rxa8 {[%emt 0:00:03]} 25. Nb3 {[%emt 0:00:48]} Nd8 {[%emt 0:05:27]} 26. Nc5 {[%emt 0:00:19]} Qd6 {[%emt 0:00:12]} 27. Bf3 {[%emt 0:00:59]} c6 {[%emt 0:00:35]} 28. g3 {[%emt 0:00:58]} Ra7 {[%emt 0:02:12]} 29. Qe2 {[%emt 0:04:41]} Re7 {[%emt 0:00:20]} 30. Qe5 {[%emt 0:01:05]} Qxe5 {[%emt 0:01:05]} 31. Rxe5 {[%emt 0:00:04]} g6 {[%emt 0:00:28]} 32. Re1 {[%emt 0:01:17]} Kg7 {[%emt 0:00:34]} 33. Ra1 {[%emt 0:02:06]} Kf6 {[%emt 0:04:21]} 34. Ra8 {[%emt 0:00:24]} Nf7 {[%emt 0:00:26]} 35. Rc8 {[%emt 0:00:43]} Rc7 {[%emt 0:00:28]} 36. Rxc7 {[%emt 0:00:12]} Nxc7 {[%emt 0:00:05]} 37. Bxc6 {[%emt 0:00:08]} e5 {[%emt 0:00:15]} 38. Nd7+ {[%emt 0:00:43]} Ke6 {[%emt 0:00:20]} 39. Nxe5 {[%emt 0:00:45]} Nxe5 {[%emt 0:00:08]} 40. dxe5 {[%emt 0:00:04]} Kxe5 {[%emt 0:00:06]} 41. f4+ {[%emt 0:32:21]} Kd6 {[%emt 0:35:29]} 42. Bf3 {[%emt 0:03:46]} Kc5 {[%emt 0:02:50]} 43. Bd1 {[%emt 0:00:00]} Kc4 {[%emt 0:00:00]} 44. Bc2 {[%emt 0:00:00]} Nd5 {[%emt 0:00:00]} 45. Kf2 {[%emt 0:00:00]} Nf6 {[%emt 0:00:00]} 46. Kf3 {[%emt 0:00:00]} h5 {[%emt 0:00:00]} 47. h4 {[%emt 0:00:00]} Nd5 {[%emt 0:00:00]} 48. Ke2 {[%emt 0:00:00]} Nf6 {[%emt 0:00:00]} 49. Ke3 {[%emt 0:00:00]} Nd5+ {[%emt 0:00:00]} 50. Kd2 {[%emt 0:00:00]} Nf6 {[%emt 0:00:00]} 51. Bd3+ {[%emt 0:00:00]} Kc5 {[%emt 0:00:00]} 52. b4+ {[%emt 0:00:00]} Kc6 {[%emt 0:00:00]} 53. Ke3 {[%emt 0:00:00]} Ng4+ {[%emt 0:00:00]} 54. Kd4 {[%emt 0:00:00]} Nf2 {[%emt 0:00:00]} 55. c4 {[%emt 0:00:00]} bxc4 {[%emt 0:00:00]} 56. Bxc4 {[%emt 0:00:00]} Kb6 {[%emt 0:01:53]} 57. Ke5 {[%emt 0:00:00]} Ne4 {[%emt 0:00:09]} 58. Bd3 {[%emt 0:00:00]} Nxg3 {[%emt 0:00:33]} 59. Kf6 {[%emt 0:00:00]} Kc6 {[%emt 0:00:11]} 60. Kxg6 {[%emt 0:00:00]} Kd5 {[%emt 0:00:43]} 61. Bxf5 {[%emt 0:00:00]} Kc4 {[%emt 0:00:05]} 62. Kg5 {[%emt 0:00:00]} Kxb4 {[%emt 0:00:11]} 63. Bg6 {[%emt 0:00:00]} Kc5 {[%emt 0:00:05]} 64. Bxh5 {[%emt 0:00:00]} Kd6 {[%emt 0:00:07]} 65. Bf3 {[%emt 0:00:00]} Ke6 {[%emt 0:00:50]} 66. Kg6 {[%emt 0:00:31]} Ke7 {[%emt 0:01:45]} 67. h5 {[%emt 0:00:19]} Kf8 {[%emt 0:00:05]} 68. h6 {[%emt 0:08:11]} Kg8 {[%emt 0:00:09]} 69. Bg4 {[%emt 0:01:07]} Kh8 {[%emt 0:00:34]} 70. Bf3 {[%emt 0:00:58]} Kg8 {[%emt 0:00:09]} 71. Bd5+ {[%emt 0:00:13]} Kh8 {[%emt 0:00:08]} 72. Be6 {[%emt 0:01:08]} Ne2 {[%emt 0:04:14]} 73. f5 {[%emt 0:00:07]} Nd4 {[%emt 0:00:06]} 74. Kf7 {[%emt 0:04:11]} Nxf5 {[%emt 0:00:10]} 75. Bxf5 1/2-1/2

[Event "DEN-chT XtraCon 2018-19"]
[Site "Denmark"]
[Date "2019.03.16"]
[Round "8"]
[White "Rasmussen, Henning"]
[Black "Dougherty, Thomas J S"]
[Result "1-0"]
[ECO "B06"]
[WhiteElo "2142"]
[BlackElo "2075"]
[Annotator "NA"]
[PlyCount "83"]
[EventDate "2018.10.27"]
[EventType "team-tourn"]
[EventCountry "DEN"]
[SourceTitle "playchess.com"]
[Source "ChessBase"]
[SourceQuality "1"]
[TimeControl "40/5400+30:1800+30"]

1. d4 {[%emt 0:00:00]} g6 {[%emt 0:00:00]} 2. e4 {[%emt 0:00:00]} Bg7 {[%emt 0:00:07]} 3. Nc3 {[%emt 0:00:20]} d6 {[%emt 0:00:23]} 4. Be3 {[%emt 0:00:17]} c6 {[%emt 0:01:36]} 5. Nf3 {[%emt 0:04:29]} Nf6 {[%emt 0:02:02]} 6. h3 {[%emt 0:00:28]} O-O {[%emt 0:00:23]} 7. Bd3 {[%emt 0:05:34]} b5 {[%emt 0:10:05]} 8. O-O {[%emt 0:02:05] LiveBook: 22 Games} Bb7 {[%emt 0:08:06]} 9. a3 {[%emt 0:09:39]} a5 {[%emt 0:09:03]} 10. e5 {[%emt 0:02:46]} dxe5 {[%emt 0:02:00]} 11. Nxe5 {[%emt 0:07:52]} Nbd7 {[%emt 0:12:41]} 12. f4 {[%emt 0:03:41]} Nb6 {[%emt 0:09:25]} 13. Qf3 $11 {[%emt 0:09:43]} Qc7 {[%emt 0:06:04]} 14. Ne4 {[%emt 0:11:02]} Nxe4 {[%emt 0:04:36]} 15. Bxe4 {[%emt 0:01:08]} Nc4 {[%emt 0:06:07]} 16. Nxc4 {[%emt 0:07:43]} bxc4 {[%emt 0:00:05]} 17. f5 {[%emt 0:02:37]} Qb6 {[%emt 0:03:58]} 18. c3 {[%emt 0:00:28]} Qb5 {[%emt 0:02:17]} 19. a4 {[%emt 0:02:53]} Qa6 {[%emt 0:00:15]} 20. Rae1 {[%emt 0:02:34]} Rae8 {[%emt 0:02:52]} 21. g4 {[%emt 0:00:42]} Ba8 {[%emt 0:00:47]} 22. g5 {[%emt 0:00:47]} Qb7 {[%emt 0:09:22]} 23. Rf2 {[%emt 0:03:46]} f6 {[%emt 0:02:10]} 24. fxg6 {[%emt 0:01:24]} f5 {[%emt 0:00:26]} 25. gxh7+ {[%emt 0:04:44]} Kh8 {[%emt 0:00:07]} 26. Bb1 {[%emt 0:01:53]} Qb3 {[%emt 0:02:50]} 27. Bf4 {[%emt 0:02:26]} c5 {[%emt 0:01:01]} 28. d5 {[%emt 0:00:49]} e5 {[%emt 0:00:46]} 29. Rfe2 {[%emt 0:03:08]} e4 {[%emt 0:00:41]} 30. Qe3 {[%emt 0:00:49]} Bxd5 {[%emt 0:01:59]} 31. Qxc5 {[%emt 0:00:36]} Bf7 {[%emt 0:00:37]} 32. Bd6 {[%emt 0:00:52]} Rc8 {[%emt 0:00:26]} 33. Qxa5 {[%emt 0:01:55]} Rfd8 {[%emt 0:00:53]} 34. Be5 {[%emt 0:02:20]} Rd5 {[%emt 0:00:50]} 35. Bxg7+ {[%emt 0:00:08]} Kxg7 {[%emt 0:00:10]} 36. Qa6 {[%emt 0:00:27]} Rc7 {[%emt 0:00:55]} 37. Qh6+ {[%emt 0:00:30]} Kh8 {[%emt 0:00:16]} 38. Qf6+ {[%emt 0:04:28]} Kxh7 {[%emt 0:00:12]} 39. Rxe4 {[%emt 0:00:35]} fxe4 {[%emt 0:01:28]} 40. Bxe4+ {[%emt 0:00:11]} Kg8 {[%emt 0:00:24]} 41. Bxd5 {[%emt 0:30:08]} Qxa4 {[%emt 0:31:09]} 42. Qd8+ {[%emt 0:00:56]} 1-0

[Event "DEN-chT XtraCon 2018-19"]
[Site "Denmark"]
[Date "2019.03.16"]
[Round "8"]
[White "Pedersen, Lars"]
[Black "Jakobsen, Peter"]
[Result "0-1"]
[ECO "A30"]
[WhiteElo "2093"]
[BlackElo "2238"]
[Annotator "NA"]
[PlyCount "74"]
[EventDate "2018.10.27"]
[EventType "team-tourn"]
[EventCountry "DEN"]
[SourceTitle "playchess.com"]
[Source "ChessBase"]
[SourceQuality "1"]
[TimeControl "40/5400+30:1800+30"]

1. Nf3 {[%emt 0:00:00]} Nf6 {[%emt 0:00:00]} 2. c4 {[%emt 0:00:00]} c5 {[%emt 0:00:00]} 3. g3 {[%emt 0:00:05]} b6 {[%emt 0:02:31]} 4. Bg2 {[%emt 0:00:16]} Bb7 {[%emt 0:00:02]} 5. O-O {[%emt 0:00:30]} e6 {[%emt 0:00:05]} 6. Nc3 {[%emt 0:00:37]} Be7 {[%emt 0:00:04]} 7. Re1 {[%emt 0:02:32]} d5 {[%emt 0:00:19]} 8. cxd5 {[%emt 0:00:10]} exd5 {[%emt 0:00:05]} 9. d4 {[%emt 0:00:16]} O-O {[%emt 0:00:13]} 10. b3 {[%emt 0:09:16] LiveBook: 24 Games} Nbd7 {[%emt 0:07:15] E17: Queen's Indian: 4 g3 Bb7 5 Bg2 Be7} 11. Bb2 {[%emt 0:00:45]} Re8 {[%emt 0:04:58]} 12. Rc1 {[%emt 0:05:40]} Rc8 {[%emt 0:06:15]} 13. e3 {[%emt 0:00:41]} Nf8 {[%emt 0:03:21]} 14. Ne5 {[%emt 0:05:37]} Ne6 {[%emt 0:12:15] [#]} 15. a3 $146 {[%emt 0:14:21]} ({Predecessor:} 15. Qd3 Bd6 16. Rcd1 cxd4 17. exd4 a6 {1-0 (37) Tkachiev,V (2642)-Ponomariov,R (2739) Moscow 2009}) 15... a6 {[%emt 0:06:22]} 16. Kh1 {[%emt 0:06:42]} Bf8 {[%emt 0:13:20]} 17. f4 {[%emt 0:05:48]} b5 {[%emt 0:02:08]} 18. dxc5 {[%emt 0:11:40]} Bxc5 {[%emt 0:00:29]} 19. b4 {[%emt 0:00:26]} Bb6 {[%emt 0:02:05]} 20. a4 {[%emt 0:06:27]} Qe7 {[%emt 0:05:00]} 21. axb5 {[%emt 0:04:11]} axb5 {[%emt 0:03:09]} 22. Nxd5 {[%emt 0:01:51]} Bxd5 {[%emt 0:04:40]} 23. Bxd5 {[%emt 0:01:04]} Rxc1 $11 {[%emt 0:10:41]} 24. Bxc1 {[%emt 0:01:08]} Qxb4 {[%emt 0:01:12]} 25. Bf3 {[%emt 0:02:01]} Ne4 {[%emt 0:02:03]} 26. Qe2 {[%emt 0:03:55]} Rc8 {[%emt 0:02:43]} 27. Rf1 {[%emt 0:03:49]} h6 {[%emt 0:02:30]} 28. Qd3 {[%emt 0:01:16]} Rxc1 {[%emt 0:00:43]} 29. Bxe4 {[%emt 0:03:13]} Rxf1+ {[%emt 0:00:09]} 30. Kg2 {[%emt 0:00:13]} Rc1 {[%emt 0:05:35]} 31. Bh7+ {[%emt 0:00:39]} Kf8 {[%emt 0:00:05]} 32. Nd7+ {[%emt 0:00:19]} Ke7 {[%emt 0:00:13]} 33. Nxb6 {[%emt 0:00:17]} Qd6 {[%emt 0:03:37]} 34. Qxb5 {[%emt 0:03:57]} Rc5 {[%emt 0:00:47]} 35. Qb3 {[%emt 0:00:18]} g6 {[%emt 0:00:55]} 36. f5 {[%emt 0:01:18]} Qc6+ {[%emt 0:00:09]} 37. Kh3 {[%emt 0:00:20]} Ng5+ {[%emt 0:00:22]} 0-1

[Event "DEN-chT XtraCon 2018-19"]
[Site "Denmark"]
[Date "2019.03.16"]
[Round "8"]
[White "Skjoldager, Per"]
[Black "Kjems Hove, Esben"]
[Result "0-1"]
[ECO "B12"]
[WhiteElo "2049"]
[BlackElo "2315"]
[Annotator "NA"]
[PlyCount "68"]
[EventDate "2018.10.27"]
[EventType "team-tourn"]
[EventCountry "DEN"]
[SourceTitle "playchess.com"]
[Source "ChessBase"]
[SourceQuality "1"]
[TimeControl "40/5400+30:1800+30"]

1. e4 {[%emt 0:00:00]} c6 {[%emt 0:00:00]} 2. d4 {[%emt 0:00:00]} d5 {[%emt 0:00:00]} 3. e5 {[%emt 0:00:13]} Bf5 {[%emt 0:00:00]} 4. Nc3 {[%emt 0:00:12]} e6 {[%emt 0:00:00]} 5. g4 {[%emt 0:00:17]} Bg6 {[%emt 0:00:06]} 6. Nge2 {[%emt 0:00:05]} c5 {[%emt 0:01:34]} 7. h4 {[%emt 0:01:24]} h5 {[%emt 0:00:40]} 8. Nf4 {[%emt 0:00:34]} Bh7 {[%emt 0:00:07]} 9. Nxh5 {[%emt 0:01:27]} cxd4 {[%emt 0:00:58]} 10. Qxd4 {[%emt 0:00:33]} Nc6 {[%emt 0:02:35] B12: Caro-Kann: Advance Variation} 11. Bb5 {[%emt 0:00:13]} a6 {[%emt 0:11:36]} 12. Bxc6+ {[%emt 0:02:26]} bxc6 {[%emt 0:00:07]} 13. Bg5 {[%emt 0:08:38]} Qa5 {[%emt 0:03:39]} (13... Qb8 14. O-O-O Qa7 15. Qa4 Qd7 16. f4 c5 17. f5 Qxa4 18. Nxa4 {0-1 (58) Sadler,M (2626)-Dreev,A (2682) Dordrecht 2004}) 14. Bd2 $146 {[%emt 0:14:33]} ({Predecessor:} 14. O-O-O Rb8 15. Qa7 Qb4 16. b3 Ne7 17. Nxg7+ Bxg7 18. Bxe7 {½-½ (30) McCarthy,D (1878)-Bullen,A (2045) Cardiff 2016}) 14... c5 {[%emt 0:06:25]} 15. Qf4 {[%emt 0:00:55]} Qc7 {[%emt 0:04:07]} 16. Qa4+ {[%emt 0:05:31]} Qd7 {[%emt 0:01:12]} 17. Qxd7+ {[%emt 0:00:08]} Kxd7 {[%emt 0:00:04]} 18. O-O-O {[%emt 0:00:13]} Kc6 {[%emt 0:02:44]} 19. f4 {[%emt 0:00:54] [#]} Nh6 {[%emt 0:05:23]} (19... d4 $1 $17 {[%cal Rd4c3]} 20. Na4 Nh6) 20. Rhg1 {[%emt 0:04:03]} Bg6 {[%emt 0:02:23]} 21. f5 {[%emt 0:03:36]} Bxh5 {[%emt 0:05:43]} 22. Bxh6 {[%emt 0:02:02]} Rxh6 {[%emt 0:02:22]} 23. gxh5 {[%emt 0:00:08]} d4 {[%emt 0:02:50]} 24. Ne4 {[%emt 0:02:43]} exf5 {[%emt 0:04:16]} 25. Ng5 {[%emt 0:04:24]} Rxh5 {[%emt 0:16:01]} 26. Nxf7 {[%emt 0:00:40]} Rxh4 {[%emt 0:00:31]} 27. Rg6+ {[%emt 0:05:20]} Kd5 {[%emt 0:02:09]} 28. b3 {[%emt 0:01:28]} Rg4 {[%emt 0:05:20]} 29. c4+ {[%emt 0:05:28]} Ke4 {[%emt 0:00:46]} 30. Re1+ {[%emt 0:00:34]} Kf3 {[%emt 0:01:19]} 31. Ng5+ {[%emt 0:07:34]} Kf2 {[%emt 0:00:58]} 32. Kd2 $2 {[%emt 0:00:18]} (32. Rh1) 32... Be7 $19 {[%emt 0:01:44]} 33. Nh3+ {[%emt 0:06:40]} Kg3 {[%emt 0:00:29]} 34. Re6 {[%emt 0:00:28]} Bd8 0-1

[Event "DEN-chT XtraCon 2018-19"]
[Site "Denmark"]
[Date "2019.03.17"]
[Round "9"]
[White "Brynell, Stellan"]
[Black "Bank, Pelle"]
[Result "1/2-1/2"]
[ECO "E63"]
[WhiteElo "2403"]
[BlackElo "2298"]
[Annotator "ChessBase"]
[PlyCount "97"]
[EventDate "2018.10.27"]
[EventType "team-tourn"]
[EventCountry "DEN"]
[SourceTitle "playchess.com"]
[Source "ChessBase"]
[SourceQuality "1"]
[TimeControl "40/5400+30:1800+30"]

1. d4 {[%emt 0:00:00]} g6 {[%emt 0:00:00]} 2. Nf3 {[%emt 0:01:13]} Bg7 {[%emt 0:00:00]} 3. c4 {[%emt 0:00:51]} d6 {[%emt 0:00:00]} 4. Nc3 {[%emt 0:00:54]} Nf6 {[%emt 0:00:00]} 5. g3 {[%emt 0:00:45]} O-O {[%emt 0:00:05]} 6. Bg2 {[%emt 0:00:03]} Nc6 {[%emt 0:00:05]} 7. O-O {[%emt 0:00:08]} a6 {[%emt 0:00:12]} 8. b3 {[%emt 0:01:47]} e5 {[%emt 0:05:23]} 9. dxe5 {[%emt 0:01:44]} dxe5 {[%emt 0:00:06]} 10. Bg5 {[%emt 0:15:15]} Qxd1 {[%emt 0:21:22]} 11. Raxd1 {[%emt 0:07:29]} h6 {[%emt 0:02:42]} 12. Be3 {[%emt 0:12:43]} Re8 {[%emt 0:00:05]} 13. Nd5 {[%emt 0:05:00]} Nxd5 {[%emt 0:03:47]} 14. cxd5 {[%emt 0:00:09]} Nb4 {[%emt 0:14:01]} 15. a3 {[%emt 0:09:56]} Nc2 {[%emt 0:00:05]} 16. Bc5 {[%emt 0:06:36]} Bf8 {[%emt 0:32:41]} 17. Bxf8 {[%emt 0:02:54]} Kxf8 {[%emt 0:00:04]} 18. a4 {[%emt 0:03:57]} Nb4 {[%emt 0:02:29]} 19. d6 {[%emt 0:04:10]} cxd6 {[%emt 0:00:40]} 20. Rxd6 {[%emt 0:00:07]} Nc6 {[%emt 0:00:32]} 21. Rc1 {[%emt 0:05:13]} Rb8 {[%emt 0:04:17]} 22. e3 {[%emt 0:02:05]} a5 {[%emt 0:04:38]} 23. Nd2 {[%emt 0:01:16]} Re6 {[%emt 0:04:08]} 24. Rxe6 {[%emt 0:03:55]} Bxe6 {[%emt 0:00:05]} 25. Bxc6 {[%emt 0:00:08]} Rc8 {[%emt 0:00:03]} 26. Kf1 {[%emt 0:04:02]} Ke7 {[%emt 0:00:20]} 27. Ke2 {[%emt 0:00:42]} f5 {[%emt 0:00:48]} 28. Rc5 {[%emt 0:03:00]} e4 {[%emt 0:03:15]} 29. Rxa5 {[%emt 0:03:05]} Rxc6 {[%emt 0:00:03]} 30. Rb5 {[%emt 0:00:11]} b6 {[%emt 0:00:10]} 31. f3 {[%emt 0:02:17]} Bc8 {[%emt 0:01:43]} 32. Nc4 {[%emt 0:02:48]} Ba6 {[%emt 0:00:06]} 33. Rb4 {[%emt 0:00:12]} Bxc4+ {[%emt 0:01:39]} 34. bxc4 {[%emt 0:01:25]} exf3+ {[%emt 0:00:26]} 35. Kxf3 {[%emt 0:00:02]} Kd6 {[%emt 0:00:16]} 36. Rb5 {[%emt 0:00:59]} Kc7 {[%emt 0:00:14]} 37. Rb4 {[%emt 0:00:26]} Kd6 {[%emt 0:00:05]} 38. h4 {[%emt 0:00:47]} h5 {[%emt 0:01:50]} 39. Rb5 {[%emt 0:00:21]} Kc7 {[%emt 0:00:04]} 40. Rb4 {[%emt 0:00:16]} Kd6 {[%emt 0:00:01]} 41. Rb5 {[%emt 0:07:34]} Kc7 {[%emt 0:00:51]} 42. a5 {[%emt 0:04:42]} bxa5 {[%emt 0:00:26]} 43. Rxa5 {[%emt 0:00:05]} Rxc4 {[%emt 0:00:08]} 44. Rd5 {[%emt 0:00:03]} Kc6 {[%emt 0:08:01]} 45. Rd8 {[%emt 0:00:08]} Re4 {[%emt 0:00:45]} 46. Rg8 {[%emt 0:02:47]} Rg4 {[%emt 0:00:11]} 47. Rd8 {[%emt 0:00:09]} Kc5 {[%emt 0:05:22]} 48. Rd7 {[%emt 0:01:50]} Kc4 {[%emt 0:03:01]} 49. Rd8 {[%emt 0:02:10]} 1/2-1/2

[Event "DEN-chT XtraCon 2018-19"]
[Site "Denmark"]
[Date "2019.03.17"]
[Round "9"]
[White "Bromann, Thorbjorn"]
[Black "Rosenkilde, Alexander"]
[Result "0-1"]
[ECO "A20"]
[WhiteElo "2395"]
[BlackElo "2253"]
[Annotator "NA"]
[PlyCount "72"]
[EventDate "2018.10.27"]
[EventType "team-tourn"]
[EventCountry "DEN"]
[SourceTitle "playchess.com"]
[Source "ChessBase"]
[SourceQuality "1"]
[TimeControl "40/5400+30:1800+30"]

1. c4 {[%emt 0:00:00]} e5 {[%emt 0:00:17]} 2. g3 {[%emt 0:00:00]} Nc6 {[%emt 0:00:14]} 3. Bg2 {[%emt 0:00:03]} Bc5 {[%emt 0:03:09]} 4. Nc3 {[%emt 0:00:09]} a6 {[%emt 0:01:20]} 5. e3 {[%emt 0:00:23]} d6 {[%emt 0:00:51]} 6. Nf3 {[%emt 0:02:20]} Nf6 {[%emt 0:02:26]} 7. h3 {[%emt 0:04:37]} O-O {[%emt 0:05:16]} 8. O-O {[%emt 0:03:51]} Bf5 {[%emt 0:13:49]} 9. d4 {[%emt 0:03:12]} exd4 {[%emt 0:12:06]} 10. Nxd4 {[%emt 0:01:02]} Bd7 {[%emt 0:12:32]} 11. b3 {[%emt 0:03:17]} Ba7 {[%emt 0:01:47]} 12. Bb2 {[%emt 0:03:25]} Re8 {[%emt 0:01:41]} 13. g4 {[%emt 0:02:57]} h6 {[%emt 0:02:44]} 14. Rc1 {[%emt 0:25:59]} Rb8 {[%emt 0:06:04]} 15. Nce2 {[%emt 0:07:30]} Nxd4 {[%emt 0:02:55]} 16. exd4 {[%emt 0:05:19]} d5 {[%emt 0:02:56]} 17. Ng3 {[%emt 0:07:04]} Rc8 $14 {[%emt 0:08:19]} ({Black should play} 17... c6 $11) 18. Re1 {[%emt 0:05:23]} c6 {[%emt 0:03:26]} 19. Rxe8+ {[%emt 0:01:58]} Qxe8 {[%emt 0:00:08]} 20. Qd2 {[%emt 0:00:34]} Bb8 {[%emt 0:02:22]} 21. Re1 {[%emt 0:01:42]} Be6 {[%emt 0:01:04]} 22. f4 {[%emt 0:03:01]} Qd8 {[%emt 0:02:08]} 23. c5 {[%emt 0:05:59]} Qc7 {[%emt 0:01:26]} 24. Bc1 {[%emt 0:01:19]} Re8 {[%emt 0:00:18]} 25. Qf2 {[%emt 0:03:56]} Bc8 {[%emt 0:02:47]} 26. Rxe8+ {[%emt 0:01:35]} Nxe8 {[%emt 0:00:05]} 27. Nh5 {[%emt 0:01:45]} Qe7 {[%emt 0:02:17]} 28. Kf1 {[%emt 0:03:32]} Nf6 {[%emt 0:05:20]} 29. Qh4 {[%emt 0:00:35]} Kf8 {[%emt 0:02:49]} 30. Nxg7 {[%emt 0:00:45]} Kxg7 {[%emt 0:01:03]} 31. f5 {[%emt 0:00:05]} h5 {[%emt 0:01:16]} 32. gxh5 {[%emt 0:02:08]} Ng8 {[%emt 0:00:31]} 33. h6+ {[%emt 0:00:32]} Kh7 {[%emt 0:00:26]} 34. Bg5 {[%emt 0:00:30]} f6 {[%emt 0:00:12]} 35. Bf4 {[%emt 0:00:31]} Bxf4 {[%emt 0:00:24]} 36. Qxf4 {[%emt 0:00:01]} Nxh6 {[%emt 0:00:11]} 0-1